[Event "GrandPrix_29.05"]
[Site "Chess.com"]
[Date "2020.05.29"]
[Round "2"]
[White "Koalaskakistis"]
[Black "LiamVrolijk"]
[Result "1-0"]
[WhiteElo "2104"]
[BlackElo "2131"]
[TimeControl "600+2"]
[EndTime "9:56:47 PDT"]
[Termination "Koalaskakistis won by resignation"]

1. f4 {[%clk 0:09:59.6]} 1... d5 {[%clk 0:09:56.8]} 2. Nf3 {[%clk 0:10:00.1]}
2... g6 {[%clk 0:09:55.8]} 3. g3 {[%clk 0:10:00.7]} 3... c6 {[%clk 0:09:48.7]}
4. Bg2 {[%clk 0:10:01.3]} 4... Qb6 {[%clk 0:09:49.6]} 5. d3 {[%clk 0:08:55.6]}
5... Bg7 {[%clk 0:09:40.5]} 6. c3 {[%clk 0:08:54.4]} 6... Nd7 {[%clk 0:09:32.3]}
7. e4 {[%clk 0:08:48.7]} 7... dxe4 {[%clk 0:09:01.5]} 8. dxe4 {[%clk 0:08:50.6]}
8... Nc5 {[%clk 0:08:03.1]} 9. Qe2 {[%clk 0:08:35.7]} 9... Bg4 {[%clk 0:06:22]}
10. b4 {[%clk 0:05:18.2]} 10... Nd7 {[%clk 0:06:20.1]} 11. Be3 {[%clk
0:05:10.7]} 11... Qc7 {[%clk 0:06:18.6]} 12. O-O {[%clk 0:04:48.1]} 12... a5
{[%clk 0:05:54.7]} 13. e5 {[%clk 0:04:34.8]} 13... Nh6 {[%clk 0:04:46.6]} 14.
Nbd2 {[%clk 0:04:25.1]} 14... O-O {[%clk 0:04:16.5]} 15. h3 {[%clk 0:04:04.6]}
15... Bxf3 {[%clk 0:04:17.7]} 16. Bxf3 {[%clk 0:04:03.1]} 16... f6 {[%clk
0:04:06.6]} 17. e6 {[%clk 0:03:33.1]} 17... Nb6 {[%clk 0:04:07.8]} 18. Nc4
{[%clk 0:03:21]} 18... Nxc4 {[%clk 0:03:45]} 19. Qxc4 {[%clk 0:03:22.9]} 19...
Nf5 {[%clk 0:03:46.6]} 20. Bf2 {[%clk 0:03:21.1]} 20... Nd6 {[%clk 0:03:47]} 21.
Qc5 {[%clk 0:03:08.6]} 21... f5 {[%clk 0:03:45.4]} 22. a3 {[%clk 0:02:47.6]}
22... Nb5 {[%clk 0:03:33.9]} 23. Rac1 {[%clk 0:02:29.9]} 23... axb4 {[%clk
0:03:25.2]} 24. axb4 {[%clk 0:01:51.7]} 24... Rfd8 {[%clk 0:03:05.7]} 25. Rfd1
{[%clk 0:01:43]} 25... Rxd1+ {[%clk 0:02:15.1]} 26. Rxd1 {[%clk 0:01:44.9]}
26... Rd8 {[%clk 0:02:07.6]} 27. c4 {[%clk 0:01:45.4]} 27... Rxd1+ {[%clk
0:01:18.1]} 28. Bxd1 {[%clk 0:01:47.3]} 28... Nc3 {[%clk 0:01:20]} 29. Bf3
{[%clk 0:01:38.5]} 29... Bf6 {[%clk 0:00:14.9]} 30. b5 {[%clk 0:01:24.2]} 30...
Ne4 {[%clk 0:00:16]} 31. Bxe4 {[%clk 0:00:53.1]} 31... fxe4 {[%clk 0:00:17.9]}
32. bxc6 {[%clk 0:00:55]} 32... Qxc6 {[%clk 0:00:19.3]} 33. Qxc6 {[%clk
0:00:49.4]} 33... bxc6 {[%clk 0:00:21.2]} 34. Bc5 {[%clk 0:00:43.6]} 34... h5
{[%clk 0:00:07.7]} 35. Kf2 {[%clk 0:00:43.8]} 35... g5 {[%clk 0:00:08.4]} 36. f5
{[%clk 0:00:16]} 36... Kf8 {[%clk 0:00:09.4]} 37. Ke3 {[%clk 0:00:14.6]} 37...
Be5 {[%clk 0:00:10.7]} 38. g4 {[%clk 0:00:13.3]} 38... hxg4 {[%clk 0:00:12.6]}
39. hxg4 {[%clk 0:00:15.2]} 39... Bf6 {[%clk 0:00:13]} 40. Kxe4 {[%clk
0:00:16.3]} 40... Ke8 {[%clk 0:00:14.6]} 41. Bd4 {[%clk 0:00:15.2]} 1-0

[Event "GrandPrix_29.05"]
[Site "Chess.com"]
[Date "2020.05.29"]
[Round "2"]
[White "PavelShkapenko"]
[Black "SamadovRead"]
[Result "1/2-1/2"]
[WhiteElo "2122"]
[BlackElo "1953"]
[TimeControl "600+2"]
[EndTime "9:56:47 PDT"]
[Termination "Game drawn by repetition"]

1. e4 {[%clk 0:09:57.4]} 1... c5 {[%clk 0:10:00.3]} 2. c3 {[%clk 0:09:58.4]}
2... Nf6 {[%clk 0:09:59.9]} 3. e5 {[%clk 0:09:59.7]} 3... Nd5 {[%clk 0:10:00.1]}
4. d4 {[%clk 0:10:01]} 4... cxd4 {[%clk 0:10:00.1]} 5. cxd4 {[%clk 0:10:02.6]}
5... d6 {[%clk 0:10:00.3]} 6. Nf3 {[%clk 0:10:03.2]} 6... Nc6 {[%clk 0:10:00.2]}
7. Bc4 {[%clk 0:10:04.3]} 7... dxe5 {[%clk 0:09:57.1]} 8. Nxe5 {[%clk
0:10:04.7]} 8... e6 {[%clk 0:09:34.7]} 9. O-O {[%clk 0:10:04.8]} 9... Bd6 {[%clk
0:09:21.2]} 10. Nf3 {[%clk 0:10:03.7]} 10... O-O {[%clk 0:09:20.6]} 11. Nc3
{[%clk 0:10:04.9]} 11... Nxc3 {[%clk 0:07:50.6]} 12. bxc3 {[%clk 0:10:05.6]}
12... Qc7 {[%clk 0:07:24.1]} 13. Bd3 {[%clk 0:08:26.1]} 13... Bf4 {[%clk
0:06:20.1]} 14. Qe2 {[%clk 0:08:17.7]} 14... Bxc1 {[%clk 0:06:20]} 15. Rfxc1
{[%clk 0:08:17.6]} 15... Rd8 {[%clk 0:04:41.4]} 16. Rab1 {[%clk 0:07:55.4]}
16... b6 {[%clk 0:04:15.5]} 17. Rb5 {[%clk 0:07:52]} 17... g6 {[%clk 0:03:58.7]}
18. Qe3 {[%clk 0:06:20]} 18... Kg7 {[%clk 0:03:51.5]} 19. Rg5 {[%clk 0:06:11]}
19... Bb7 {[%clk 0:03:16]} 20. h4 {[%clk 0:06:06.8]} 20... Ne7 {[%clk
0:03:04.4]} 21. h5 {[%clk 0:05:12]} 21... Nd5 {[%clk 0:02:54.1]} 22. h6+ {[%clk
0:04:10.7]} 22... Kg8 {[%clk 0:02:50.6]} 23. Qe1 {[%clk 0:04:11.6]} 23... Nf4
{[%clk 0:02:29.1]} 24. Be4 {[%clk 0:04:12.2]} 24... Bxe4 {[%clk 0:02:04.4]} 25.
Qxe4 {[%clk 0:04:11.6]} 25... Rac8 {[%clk 0:01:40.9]} 26. Ne5 {[%clk 0:02:42.5]}
26... Nd5 {[%clk 0:01:26.8]} 27. Rg3 {[%clk 0:02:41.3]} 27... Qe7 {[%clk
0:01:10.7]} 28. c4 {[%clk 0:02:16.3]} 28... Nf6 {[%clk 0:01:06.7]} 29. Qh4
{[%clk 0:02:17.3]} 29... Nd5 {[%clk 0:00:59.8]} 30. Qh5 {[%clk 0:01:51.1]} 30...
Nf4 {[%clk 0:00:55.9]} 31. Qf3 {[%clk 0:01:42.5]} 31... Rxd4 {[%clk 0:00:50.4]}
32. Rg4 {[%clk 0:01:39]} 32... Qf6 {[%clk 0:00:43.1]} 33. Nc6 {[%clk 0:01:37.9]}
33... Ne2+ {[%clk 0:00:36.7]} 34. Qxe2 {[%clk 0:01:10.7]} 34... Rxg4 {[%clk
0:00:38.1]} 35. Qxg4 {[%clk 0:01:05.5]} 35... Rxc6 {[%clk 0:00:39.2]} 36. Qe4
{[%clk 0:01:00.6]} 36... Rc8 {[%clk 0:00:38.3]} 37. Rd1 {[%clk 0:00:58.5]} 37...
Qg5 {[%clk 0:00:35.1]} 38. Qb7 {[%clk 0:00:58.2]} 38... Rf8 {[%clk 0:00:34.5]}
39. Qxa7 {[%clk 0:00:57]} 39... Qxh6 {[%clk 0:00:28.9]} 40. Qxb6 {[%clk
0:00:58.2]} 40... Qh5 {[%clk 0:00:29.4]} 41. Rd8 {[%clk 0:00:52.3]} 41... Qe5
{[%clk 0:00:27.4]} 42. Rxf8+ {[%clk 0:00:50]} 42... Kxf8 {[%clk 0:00:29.3]} 43.
c5 {[%clk 0:00:34.2]} 43... Qe1+ {[%clk 0:00:30.3]} 44. Kh2 {[%clk 0:00:35.3]}
44... Qxf2 {[%clk 0:00:29.7]} 45. Qd6+ {[%clk 0:00:26]} 45... Kg8 {[%clk
0:00:29.4]} 46. c6 {[%clk 0:00:26.8]} 46... Qh4+ {[%clk 0:00:29.8]} 47. Kg1
{[%clk 0:00:28.1]} 47... Qe1+ {[%clk 0:00:31.4]} 48. Kh2 {[%clk 0:00:29.6]}
48... Qh4+ {[%clk 0:00:33]} 49. Kg1 {[%clk 0:00:31]} 49... Qe1+ {[%clk
0:00:34.6]} 50. Kh2 {[%clk 0:00:32.3]} 50... Qh4+ {[%clk 0:00:36.2]} 1/2-1/2

[Event "GrandPrix_29.05"]
[Site "Chess.com"]
[Date "2020.05.29"]
[Round "2"]
[White "Olghita64"]
[Black "switlave"]
[Result "0-1"]
[WhiteElo "2005"]
[BlackElo "1932"]
[TimeControl "600+2"]
[EndTime "9:56:48 PDT"]
[Termination "switlave won by resignation"]

1. Nf3 {[%clk 0:10:01.9]} 1... Nf6 {[%clk 0:09:59.9]} 2. c4 {[%clk 0:10:02]}
2... g6 {[%clk 0:09:50.9]} 3. Nc3 {[%clk 0:10:01.1]} 3... d5 {[%clk 0:09:48.9]}
4. cxd5 {[%clk 0:09:57.4]} 4... Nxd5 {[%clk 0:09:50.8]} 5. Qa4+ {[%clk 0:09:53]}
5... Nc6 {[%clk 0:09:41.3]} 6. Ne5 {[%clk 0:09:09.1]} 6... Nb4 {[%clk
0:09:40.2]} 7. Nxc6 {[%clk 0:08:44.4]} 7... Nxc6 {[%clk 0:09:39]} 8. g3 {[%clk
0:08:45.4]} 8... Bg7 {[%clk 0:09:16.5]} 9. Bg2 {[%clk 0:08:45.7]} 9... Bd7
{[%clk 0:09:12.4]} 10. d3 {[%clk 0:08:40.3]} 10... O-O {[%clk 0:09:05.2]} 11.
Qh4 {[%clk 0:08:31.3]} 11... Nd4 {[%clk 0:08:34.5]} 12. O-O {[%clk 0:08:30.4]}
12... c6 {[%clk 0:08:27.3]} 13. e3 {[%clk 0:07:31.1]} 13... Nf5 {[%clk
0:07:37.4]} 14. Qa4 {[%clk 0:07:04.8]} 14... c5 {[%clk 0:05:48.6]} 15. Qb3
{[%clk 0:06:57.5]} 15... Rb8 {[%clk 0:05:45]} 16. a4 {[%clk 0:06:04.5]} 16...
Be6 {[%clk 0:05:37.4]} 17. Bd5 {[%clk 0:05:56.3]} 17... Bxd5 {[%clk 0:05:32.7]}
18. Nxd5 {[%clk 0:05:33.3]} 18... e6 {[%clk 0:05:30]} 19. Nf4 {[%clk 0:05:28]}
19... Qd6 {[%clk 0:05:25.7]} 20. Rd1 {[%clk 0:04:46.9]} 20... Rfd8 {[%clk
0:05:22.5]} 21. Qc2 {[%clk 0:04:35.6]} 21... Rbc8 {[%clk 0:05:04]} 22. a5 {[%clk
0:04:34.8]} 22... e5 {[%clk 0:04:43.6]} 23. Ne2 {[%clk 0:04:32.1]} 23... e4
{[%clk 0:04:18]} 24. Ra3 {[%clk 0:04:21.9]} 24... b5 {[%clk 0:03:58.4]} 25. axb6
{[%clk 0:04:20.6]} 25... axb6 {[%clk 0:03:59]} 26. Rd2 {[%clk 0:04:14.2]} 26...
exd3 {[%clk 0:03:33.1]} 27. Raxd3 {[%clk 0:04:14.5]} 27... Qe7 {[%clk
0:03:34.2]} 28. Nf4 {[%clk 0:04:12.4]} 28... h5 {[%clk 0:03:23.6]} 29. Nd5
{[%clk 0:04:02.9]} 29... Qb7 {[%clk 0:03:19.7]} 30. b3 {[%clk 0:03:36.6]} 30...
b5 {[%clk 0:02:45.8]} 31. Qd1 {[%clk 0:03:02.7]} 31... Re8 {[%clk 0:02:38.1]}
32. Nf4 {[%clk 0:02:49.8]} 32... c4 {[%clk 0:02:30.9]} 33. Rd7 {[%clk
0:02:48.3]} 33... Qe4 {[%clk 0:02:30.1]} 34. bxc4 {[%clk 0:02:30.4]} 34... bxc4
{[%clk 0:02:30.4]} 35. R2d5 {[%clk 0:02:04.1]} 35... c3 {[%clk 0:01:55.8]} 36.
Qb3 {[%clk 0:02:03.5]} 36... Rb8 {[%clk 0:01:25.1]} 37. Rb5 {[%clk 0:01:58.3]}
37... Rxb5 {[%clk 0:01:20.9]} 38. Qxf7+ {[%clk 0:01:34.3]} 38... Kh8 {[%clk
0:01:19.3]} 39. Nxg6+ {[%clk 0:01:33.1]} 39... Kh7 {[%clk 0:01:20.4]} 40. Nf4
{[%clk 0:01:10]} 40... Rb6 {[%clk 0:01:01.4]} 41. f3 {[%clk 0:00:55.3]} 41...
Qb1 {[%clk 0:00:56.8]} 42. Ne2 {[%clk 0:00:43.5]} 42... Rxe3 {[%clk 0:00:51.2]}
43. Qxh5+ {[%clk 0:00:14.8]} 43... Rh6 {[%clk 0:00:48.4]} 44. Qg5 {[%clk
0:00:12.6]} 44... Rxe2 {[%clk 0:00:37.4]} 45. Rxg7+ {[%clk 0:00:13]} 45... Nxg7
{[%clk 0:00:38.3]} 46. Qxh6+ {[%clk 0:00:14.1]} 46... Kg8 {[%clk 0:00:39.9]} 0-1

[Event "GrandPrix_29.05"]
[Site "Chess.com"]
[Date "2020.05.29"]
[Round "2"]
[White "dosto07"]
[Black "cantdefyme"]
[Result "0-1"]
[WhiteElo "1989"]
[BlackElo "2111"]
[TimeControl "600+2"]
[EndTime "9:56:52 PDT"]
[Termination "cantdefyme won by resignation"]

1. e4 {[%clk 0:09:54.1]} 1... c5 {[%clk 0:10:00.5]} 2. Nf3 {[%clk 0:09:53.7]}
2... d6 {[%clk 0:10:01]} 3. Bb5+ {[%clk 0:09:51.9]} 3... Nd7 {[%clk 0:10:00.5]}
4. O-O {[%clk 0:09:16.8]} 4... a6 {[%clk 0:09:54]} 5. Bxd7+ {[%clk 0:09:10.5]}
5... Bxd7 {[%clk 0:09:55.9]} 6. d4 {[%clk 0:09:08.5]} 6... cxd4 {[%clk 0:09:56]}
7. Qxd4 {[%clk 0:09:05.9]} 7... e5 {[%clk 0:09:52.6]} 8. Qd3 {[%clk 0:08:56.6]}
8... h6 {[%clk 0:09:52.6]} 9. Nc3 {[%clk 0:08:52.7]} 9... Nf6 {[%clk 0:09:52.4]}
10. Nd2 {[%clk 0:08:38.8]} 10... Rc8 {[%clk 0:09:26.5]} 11. a4 {[%clk
0:08:02.2]} 11... Qb6 {[%clk 0:09:17.7]} 12. Nc4 {[%clk 0:07:43.1]} 12... Qd4
{[%clk 0:09:17.3]} 13. Ne3 {[%clk 0:07:42.2]} 13... Be7 {[%clk 0:05:47.8]} 14.
Rd1 {[%clk 0:07:34.1]} 14... Qxd3 {[%clk 0:04:00.1]} 15. Rxd3 {[%clk 0:07:30.8]}
15... Rc6 {[%clk 0:03:22]} 16. Bd2 {[%clk 0:07:19.7]} 16... O-O {[%clk
0:03:18.1]} 17. Be1 {[%clk 0:07:08.3]} 17... Rfc8 {[%clk 0:02:28.2]} 18. Kf1
{[%clk 0:06:03.2]} 18... b5 {[%clk 0:01:26.4]} 19. axb5 {[%clk 0:04:26.8]} 19...
axb5 {[%clk 0:01:26.5]} 20. Ncd5 {[%clk 0:02:55.2]} 20... Nxd5 {[%clk
0:01:11.2]} 21. Nxd5 {[%clk 0:02:50.9]} 21... Bd8 {[%clk 0:00:46.7]} 22. Ra7
{[%clk 0:02:34.6]} 22... Be6 {[%clk 0:00:45.5]} 23. c3 {[%clk 0:01:33.6]} 23...
f5 {[%clk 0:00:15.3]} 24. f3 {[%clk 0:01:33.9]} 24... fxe4 {[%clk 0:00:14.8]}
25. fxe4 {[%clk 0:01:33.7]} 25... Rc4 {[%clk 0:00:10.1]} 26. Rg3 {[%clk
0:01:15.7]} 26... g5 {[%clk 0:00:04.4]} 27. Re3 {[%clk 0:00:21.3]} 27... Bxd5
{[%clk 0:00:04.6]} 28. exd5 {[%clk 0:00:21.8]} 28... Bb6 {[%clk 0:00:05.6]} 29.
Bf2 {[%clk 0:00:16.9]} 29... Bxa7 {[%clk 0:00:06.2]} 30. Rf3 {[%clk 0:00:14.1]}
30... Bxf2 {[%clk 0:00:07]} 31. Kxf2 {[%clk 0:00:15]} 31... Rf8 {[%clk
0:00:08.1]} 32. Rxf8+ {[%clk 0:00:15]} 32... Kxf8 {[%clk 0:00:10]} 33. Ke2
{[%clk 0:00:16.3]} 33... Rc7 {[%clk 0:00:11.3]} 34. Kd3 {[%clk 0:00:17]} 34...
Ke7 {[%clk 0:00:12.4]} 35. b3 {[%clk 0:00:17.3]} 35... Rc5 {[%clk 0:00:10.2]}
36. c4 {[%clk 0:00:17.9]} 36... bxc4+ {[%clk 0:00:11.1]} 37. bxc4 {[%clk
0:00:18.8]} 37... Kf6 {[%clk 0:00:11.9]} 38. g4 {[%clk 0:00:19.5]} 38... Kg6
{[%clk 0:00:11.8]} 39. h3 {[%clk 0:00:20.1]} 39... h5 {[%clk 0:00:12.7]} 40. Kc3
{[%clk 0:00:20.2]} 40... hxg4 {[%clk 0:00:12.2]} 41. hxg4 {[%clk 0:00:21.3]}
41... Kf6 {[%clk 0:00:12.2]} 42. Kd3 {[%clk 0:00:22.4]} 42... e4+ {[%clk
0:00:13.4]} 43. Kd4 {[%clk 0:00:22]} 43... Rc7 {[%clk 0:00:14.4]} 44. Kc3 {[%clk
0:00:17.9]} 44... Ke5 {[%clk 0:00:15.1]} 0-1

[Event "GrandPrix_29.05"]
[Site "Chess.com"]
[Date "2020.05.29"]
[Round "2"]
[White "Sunerorlater"]
[Black "BogdanDeac"]
[Result "1-0"]
[WhiteElo "2492"]
[BlackElo "2141"]
[TimeControl "600+2"]
[EndTime "9:56:53 PDT"]
[Termination "Sunerorlater won by resignation"]

1. e4 {[%clk 0:10:01.9]} 1... e5 {[%clk 0:10:00.3]} 2. Nf3 {[%clk 0:10:01.5]}
2... Nc6 {[%clk 0:10:01.9]} 3. Bc4 {[%clk 0:10:00.4]} 3... Nf6 {[%clk
0:10:02.2]} 4. d3 {[%clk 0:10:00.9]} 4... Bc5 {[%clk 0:10:02.6]} 5. O-O {[%clk
0:10:00.6]} 5... d6 {[%clk 0:10:03.2]} 6. c3 {[%clk 0:10:00.9]} 6... O-O {[%clk
0:10:02.9]} 7. Bb3 {[%clk 0:09:56.7]} 7... a5 {[%clk 0:09:53]} 8. Bg5 {[%clk
0:09:38]} 8... h6 {[%clk 0:09:40.5]} 9. Bh4 {[%clk 0:09:38.4]} 9... g5 {[%clk
0:09:25]} 10. Bg3 {[%clk 0:09:38.5]} 10... Kg7 {[%clk 0:08:49.1]} 11. Nbd2
{[%clk 0:08:38.2]} 11... Nh7 {[%clk 0:07:56.8]} 12. Nc4 {[%clk 0:07:58]} 12...
h5 {[%clk 0:07:23.7]} 13. h3 {[%clk 0:07:03.6]} 13... h4 {[%clk 0:05:24.1]} 14.
Bh2 {[%clk 0:07:01.2]} 14... g4 {[%clk 0:05:24.6]} 15. hxg4 {[%clk 0:06:58.7]}
15... Bxg4 {[%clk 0:05:26.5]} 16. Ne3 {[%clk 0:06:56.3]} 16... Bxe3 {[%clk
0:05:26.1]} 17. fxe3 {[%clk 0:06:57.1]} 17... f5 {[%clk 0:05:27.7]} 18. exf5
{[%clk 0:06:44.3]} 18... Rxf5 {[%clk 0:05:25.1]} 19. Be6 {[%clk 0:06:05.2]}
19... Rxf3 {[%clk 0:05:19]} 20. Bxg4 {[%clk 0:06:05]} 20... Rxf1+ {[%clk
0:05:19.5]} 21. Qxf1 {[%clk 0:05:56.9]} 21... Qg5 {[%clk 0:05:15.1]} 22. Qe2
{[%clk 0:05:55.2]} 22... Rf8 {[%clk 0:04:13.5]} 23. Bh3 {[%clk 0:05:19.7]} 23...
Ne7 {[%clk 0:04:10.2]} 24. Qg4 {[%clk 0:05:12.3]} 24... Nd5 {[%clk 0:03:39.9]}
25. Re1 {[%clk 0:05:08.7]} 25... Qxg4 {[%clk 0:03:36.6]} 26. Bxg4 {[%clk
0:05:09]} 26... Ng5 {[%clk 0:03:37.9]} 27. a3 {[%clk 0:04:39.2]} 27... b5 {[%clk
0:03:09.9]} 28. Bd7 {[%clk 0:03:58.7]} 28... Rb8 {[%clk 0:02:54.2]} 29. Kf2
{[%clk 0:03:37.8]} 29... c5 {[%clk 0:02:15.6]} 30. Ke2 {[%clk 0:03:23]} 30...
Nf6 {[%clk 0:01:07.8]} 31. Bf5 {[%clk 0:03:08.6]} 31... b4 {[%clk 0:01:08.4]}
32. cxb4 {[%clk 0:02:59.6]} 32... axb4 {[%clk 0:00:58.2]} 33. a4 {[%clk
0:02:54.4]} 33... Ra8 {[%clk 0:00:58.7]} 34. b3 {[%clk 0:02:44.2]} 34... Nd5
{[%clk 0:00:56]} 35. d4 {[%clk 0:02:25.6]} 35... Rf8 {[%clk 0:00:14.3]} 36. Bd7
{[%clk 0:01:43.7]} 36... Nc3+ {[%clk 0:00:11.7]} 37. Kd3 {[%clk 0:01:38.7]}
37... Rf2 {[%clk 0:00:12]} 38. dxe5 {[%clk 0:01:24.4]} 38... Rxg2 {[%clk
0:00:12.7]} 39. Bf4 {[%clk 0:01:19.9]} 39... Nf3 {[%clk 0:00:12.7]} 40. Rf1
{[%clk 0:01:04.4]} 40... Rd2+ {[%clk 0:00:11]} 41. Kc4 {[%clk 0:01:04.1]} 41...
dxe5 {[%clk 0:00:11.9]} 42. Rxf3 {[%clk 0:01:00]} 42... exf4 {[%clk 0:00:11.7]}
43. Bc6 {[%clk 0:00:54.6]} 43... Rd6 {[%clk 0:00:09.1]} 44. Kxc5 {[%clk
0:00:39.7]} 44... Rd3 {[%clk 0:00:09.9]} 45. Rxf4 {[%clk 0:00:38.1]} 45... Rxe3
{[%clk 0:00:10.9]} 46. Rxh4 {[%clk 0:00:37.1]} 46... Na2 {[%clk 0:00:11.9]} 47.
Bd5 {[%clk 0:00:36.7]} 47... Kf6 {[%clk 0:00:13.1]} 48. a5 {[%clk 0:00:37.3]}
1-0

[Event "GrandPrix_29.05"]
[Site "Chess.com"]
[Date "2020.05.29"]
[Round "2"]
[White "Rakhmanov_Aleksandr"]
[Black "rim1618"]
[Result "1-0"]
[WhiteElo "2284"]
[BlackElo "2185"]
[TimeControl "600+2"]
[EndTime "9:56:55 PDT"]
[Termination "Rakhmanov_Aleksandr won by resignation"]

1. c4 {[%clk 0:10:00.5]} 1... c5 {[%clk 0:09:55.1]} 2. Nc3 {[%clk 0:09:59.7]}
2... Nf6 {[%clk 0:09:54.8]} 3. Nf3 {[%clk 0:09:50.8]} 3... e6 {[%clk 0:09:11.5]}
4. g3 {[%clk 0:09:23.5]} 4... b6 {[%clk 0:09:10.7]} 5. Bg2 {[%clk 0:09:24.2]}
5... Bb7 {[%clk 0:09:11.9]} 6. O-O {[%clk 0:09:25.4]} 6... Be7 {[%clk
0:09:13.1]} 7. d4 {[%clk 0:09:26.5]} 7... cxd4 {[%clk 0:09:14]} 8. Qxd4 {[%clk
0:09:28.4]} 8... d6 {[%clk 0:09:01]} 9. Rd1 {[%clk 0:09:22.1]} 9... O-O {[%clk
0:08:50.8]} 10. Bg5 {[%clk 0:08:50.3]} 10... Nc6 {[%clk 0:07:30.6]} 11. Qf4
{[%clk 0:08:44.1]} 11... Qb8 {[%clk 0:07:14.2]} 12. Bxf6 {[%clk 0:08:17.1]}
12... Bxf6 {[%clk 0:07:13.8]} 13. Rxd6 {[%clk 0:08:16.4]} 13... Bxc3 {[%clk
0:04:58.5]} 14. bxc3 {[%clk 0:08:10.5]} 14... Na5 {[%clk 0:04:45.3]} 15. Rad1
{[%clk 0:06:35.5]} 15... Qc7 {[%clk 0:04:24.6]} 16. Ne5 {[%clk 0:06:32.8]} 16...
Bxg2 {[%clk 0:03:42.5]} 17. Rd7 {[%clk 0:03:25.4]} 17... Qc5 {[%clk 0:03:19.1]}
18. Kxg2 {[%clk 0:03:16.6]} 18... Nc6 {[%clk 0:02:45.1]} 19. Nxf7 {[%clk
0:02:28.4]} 19... Ne7 {[%clk 0:02:01.7]} 20. Rd8 {[%clk 0:00:54.9]} 20... Ng6
{[%clk 0:01:28]} 21. Qf3 {[%clk 0:00:29.9]} 21... Raxd8 {[%clk 0:01:24.7]} 22.
Rxd8 {[%clk 0:00:29.9]} 22... Qxc4 {[%clk 0:00:34.9]} 23. Ne5 {[%clk 0:00:09]}
23... Qc7 {[%clk 0:00:27.1]} 24. Rxf8+ {[%clk 0:00:09.4]} 24... Nxf8 {[%clk
0:00:28.1]} 25. Qf4 {[%clk 0:00:05.9]} 25... g6 {[%clk 0:00:13.3]} 26. h4 {[%clk
0:00:05.9]} 26... Kg7 {[%clk 0:00:13.2]} 27. Qd4 {[%clk 0:00:06.8]} 27... Kg8
{[%clk 0:00:10.5]} 28. Ng4 {[%clk 0:00:07.8]} 28... Qg7 {[%clk 0:00:06.6]} 29.
Ne5 {[%clk 0:00:03.8]} 29... Qb7+ {[%clk 0:00:05.8]} 30. f3 {[%clk 0:00:05]}
30... Qd5 {[%clk 0:00:06]} 31. Qxd5 {[%clk 0:00:05.4]} 31... exd5 {[%clk
0:00:07.9]} 32. Nc6 {[%clk 0:00:06.6]} 32... Ne6 {[%clk 0:00:03.4]} 33. Nxa7
{[%clk 0:00:07.7]} 33... Nc5 {[%clk 0:00:04.8]} 34. Nb5 {[%clk 0:00:08.2]} 34...
Kf7 {[%clk 0:00:04.9]} 35. Kf2 {[%clk 0:00:09.5]} 35... Ke6 {[%clk 0:00:04.6]}
36. Ke3 {[%clk 0:00:10.8]} 36... Ke5 {[%clk 0:00:05.7]} 37. Kd2 {[%clk
0:00:10.5]} 37... h5 {[%clk 0:00:05.1]} 38. Nd4 {[%clk 0:00:11.6]} 38... Nd7
{[%clk 0:00:04.6]} 39. Nc2 {[%clk 0:00:12.5]} 39... Nf6 {[%clk 0:00:04.1]} 40.
Ne1 {[%clk 0:00:13.5]} 40... Ne8 {[%clk 0:00:04.4]} 41. Nd3+ {[%clk 0:00:14.8]}
41... Ke6 {[%clk 0:00:05.7]} 42. Nf4+ {[%clk 0:00:15.4]} 1-0

[Event "GrandPrix_29.05"]
[Site "Chess.com"]
[Date "2020.05.29"]
[Round "2"]
[White "SmirnovTimofey2000"]
[Black "Chessbuster123"]
[Result "1-0"]
[WhiteElo "2219"]
[BlackElo "1997"]
[TimeControl "600+2"]
[EndTime "9:56:56 PDT"]
[Termination "SmirnovTimofey2000 won on time"]

1. e4 {[%clk 0:09:56.5]} 1... c5 {[%clk 0:10:00.4]} 2. Nf3 {[%clk 0:09:55.4]}
2... d6 {[%clk 0:10:01.9]} 3. d4 {[%clk 0:09:55]} 3... cxd4 {[%clk 0:10:03.8]}
4. Nxd4 {[%clk 0:09:56]} 4... Nf6 {[%clk 0:10:05.3]} 5. Nc3 {[%clk 0:09:56]}
5... a6 {[%clk 0:10:06.7]} 6. Be2 {[%clk 0:09:56.2]} 6... e5 {[%clk 0:10:07.8]}
7. Nb3 {[%clk 0:09:55.5]} 7... Be7 {[%clk 0:10:07.2]} 8. Be3 {[%clk 0:09:54]}
8... O-O {[%clk 0:10:07]} 9. O-O {[%clk 0:09:33.9]} 9... Nbd7 {[%clk 0:10:06.4]}
10. a4 {[%clk 0:09:33]} 10... b6 {[%clk 0:10:06.8]} 11. f4 {[%clk 0:08:59.2]}
11... Bb7 {[%clk 0:10:05.8]} 12. Bf3 {[%clk 0:08:59.3]} 12... Rc8 {[%clk
0:09:54.9]} 13. Qe2 {[%clk 0:08:37.3]} 13... Qc7 {[%clk 0:09:14.8]} 14. f5
{[%clk 0:08:13.3]} 14... Qc4 {[%clk 0:09:07.3]} 15. Qxc4 {[%clk 0:08:05.5]}
15... Rxc4 {[%clk 0:09:09.2]} 16. Nd2 {[%clk 0:08:05.5]} 16... Rc7 {[%clk
0:09:07.5]} 17. g4 {[%clk 0:08:00.6]} 17... h6 {[%clk 0:08:49.5]} 18. Kf2 {[%clk
0:07:47.2]} 18... Rfc8 {[%clk 0:08:47.7]} 19. h4 {[%clk 0:07:33.3]} 19... Nh7
{[%clk 0:07:42.3]} 20. Rh1 {[%clk 0:07:27.5]} 20... Rxc3 {[%clk 0:07:03.5]} 21.
bxc3 {[%clk 0:07:25.7]} 21... Rxc3 {[%clk 0:07:05.4]} 22. Ra2 {[%clk 0:06:56]}
22... Nc5 {[%clk 0:05:38.7]} 23. Bxc5 {[%clk 0:05:46]} 23... Rxc5 {[%clk
0:05:40.6]} 24. c4 {[%clk 0:05:38.4]} 24... Bd8 {[%clk 0:04:35.1]} 25. Kg3
{[%clk 0:05:30.3]} 25... Nf6 {[%clk 0:04:02.1]} 26. Re1 {[%clk 0:03:41.6]} 26...
Bc7 {[%clk 0:03:02.6]} 27. Kf2 {[%clk 0:02:51.2]} 27... Bd8 {[%clk 0:02:25.6]}
28. Re3 {[%clk 0:02:46.8]} 28... Nd7 {[%clk 0:02:03.4]} 29. Kg3 {[%clk
0:02:43.6]} 29... Nb8 {[%clk 0:02:02.7]} 30. Be2 {[%clk 0:02:37.5]} 30... Rc8
{[%clk 0:01:40.9]} 31. Rd3 {[%clk 0:02:14.2]} 31... Bc7 {[%clk 0:01:39.4]} 32.
Rb2 {[%clk 0:02:03.9]} 32... Nc6 {[%clk 0:01:34.5]} 33. g5 {[%clk 0:01:59.6]}
33... Nd4 {[%clk 0:01:24.7]} 34. Bd1 {[%clk 0:01:57.4]} 34... Bc6 {[%clk
0:01:17.1]} 35. Kf2 {[%clk 0:01:28.5]} 35... hxg5 {[%clk 0:01:01.6]} 36. hxg5
{[%clk 0:01:28.9]} 36... Bd8 {[%clk 0:01:02.2]} 37. Rg3 {[%clk 0:01:25.6]} 37...
Kf8 {[%clk 0:00:56.8]} 38. Rg4 {[%clk 0:00:54.8]} 38... b5 {[%clk 0:00:50.9]}
39. axb5 {[%clk 0:00:50.4]} 39... axb5 {[%clk 0:00:52.8]} 40. cxb5 {[%clk
0:00:51.4]} 40... Bxb5 {[%clk 0:00:54.1]} 41. Kg2 {[%clk 0:00:29.5]} 41... Rc3
{[%clk 0:00:37.9]} 42. Nf3 {[%clk 0:00:22.1]} 1-0